fUSD/lending_fUSD_20240718
["ID","MTS","AMOUNT","RATE_DAILY","PERIOD"]
[332528478,1721288063109,-305.64900984,0.00025205,2]
[332528479,1721288063122,-893.45,0.00025205,2]
[332528480,1721288063135,-1159.85,0.00025205,2]
[332528481,1721288063147,-500.0,0.00025205,2]
[332528482,1721288063159,-799.42,0.00025205,2]
[332528483,1721288063171,-511.89337049,0.00025205,2]
[332528484,1721288063184,-500.0,0.00025205,2]
[332528485,1721288063197,-1000.0,0.00025205,2]
[332528486,1721288063209,-400.0,0.00025219,2]
[332528487,1721288063222,-280.0,0.000253,10]
[332528488,1721288063236,-1005.0,0.00025344,2]
[332528489,1721288063249,-150.0,0.00025379,2]
[332528490,1721288063262,-954.82,0.00025463,7]
[332528491,1721288063276,-954.82,0.00025463,7]
[332528492,1721288063290,-1548.92,0.00025479,2]
[332528493,1721288063302,-903.45,0.00025479,2]
[332528494,1721288063316,-500.0,0.00025479,2]
[332528495,1721288063329,-873.73,0.00025479,2]
[332528496,1721288063342,-500.0,0.00025479,2]
[332528497,1721288063355,-1146.78,0.00025479,2]
[332528498,1721288063367,-500.0,0.00025479,2]
[332528499,1721288063382,-500.0,0.00025479,2]
[332528500,1721288063395,-755.65,0.00025479,2]
[332528501,1721288063409,-500.0,0.00025479,2]
[332528502,1721288063422,-1117.53,0.00025479,2]
[332528503,1721288063435,-1014.34,0.00025479,2]
[332528504,1721288063449,-247.45217917,0.00025479,2]
[332528505,1721288063462,-500.0,0.00025479,2]
[332528506,1721288063477,-500.0,0.00025479,2]
[332528507,1721288063491,-926.9,0.00025479,2]
[332528508,1721288063504,-500.0,0.00025479,2]
[332528509,1721288063517,-559.52,0.00025479,2]
[332528510,1721288063531,-1202.57,0.00025479,2]
[332528511,1721288063544,-500.0,0.00025479,2]
[332528512,1721288063557,-686.6,0.00025479,2]
[332528513,1721288063570,-698.02,0.00025479,2]
[332528514,1721288063582,-500.0,0.00025479,2]
[332528515,1721288063596,-500.0,0.00025479,2]
[332528516,1721288063608,-568.02,0.00025479,2]
[332528517,1721288063622,-500.0,0.00025479,2]
[332528518,1721288063636,-500.0,0.00025479,2]
[332528519,1721288063650,-506.5,0.00025479,2]
[332528520,1721288063667,-579.89,0.00025479,2]
[332528521,1721288063681,-888.04,0.00025479,2]
[332528522,1721288063694,-877.77,0.00025479,2]
[332528523,1721288063708,-500.0,0.00025479,2]
[332528524,1721288063721,-500.0,0.00025479,2]
[332528525,1721288063736,-500.0,0.00025479,2]
[332528526,1721288063750,-689.95,0.00025479,2]
[332528527,1721288063763,-887.13,0.00025479,2]
[332528528,1721288063776,-512.75,0.00025479,2]
[332528529,1721288063790,-305.02993335,0.00025479,2]
[332528530,1721288063804,-918.48,0.00025479,2]
[332528531,1721288063817,-500.0,0.00025479,2]
[332528532,1721288063831,-607.12503305,0.00025479,2]
[332528533,1721288063844,-1130.16,0.00025479,2]
[332528534,1721288063858,-500.0,0.00025479,2]
[332528535,1721288063873,-500.0,0.00025479,2]
[332528536,1721288063886,-1018.39,0.00025479,2]
[332528537,1721288063900,-500.0,0.00025479,2]
[332528538,1721288063914,-500.0,0.00025479,2]
[332528539,1721288063927,-582.9,0.00025479,2]
[332528540,1721288063940,-500.0,0.00025479,2]
[332528541,1721288063954,-629.0,0.00025479,2]
[332528542,1721288063968,-682.95,0.00025479,2]
[332528543,1721288063982,-1036.97,0.00025479,2]
[332528544,1721288063995,-688.35,0.00025479,2]
[332528545,1721288064007,-500.0,0.00025479,2]
[332528546,1721288064020,-851.26,0.00025479,2]
[332528547,1721288064034,-1046.3,0.00025479,2]
[332528548,1721288064047,-500.0,0.00025479,2]
[332528549,1721288064060,-988.22,0.00025479,2]
[332528550,1721288064073,-500.0,0.00025479,2]
[332528551,1721288064087,-500.0,0.00025479,2]
[332528552,1721288064101,-500.0,0.00025479,2]
[332528553,1721288064114,-864.94,0.00025479,2]
[332528554,1721288064128,-704.02,0.00025479,2]
[332528555,1721288064141,-163.84368131,0.00025479,2]
[332528556,1721288064154,-791.51,0.00025479,2]
[332528557,1721288064167,-637.96,0.00025479,2]
[332528558,1721288064181,-645.57,0.00025479,2]
[332528559,1721288064194,-500.0,0.00025479,2]
[332528560,1721288064209,-632.83,0.00025479,2]
[332528561,1721288064222,-654.28,0.00025479,2]
[332528562,1721288064236,-673.07,0.00025479,2]
[332528563,1721288064248,-616.18,0.00025479,2]
[332528564,1721288064260,-500.0,0.00025479,2]
[332528565,1721288064273,-530.94,0.00025479,2]
[332528566,1721288064286,-527.98,0.00025479,2]
[332528567,1721288064300,-547.08,0.00025479,2]
[332528568,1721288064314,-559.75,0.00025479,2]
[332528569,1721288064326,-611.9016666,0.00025479,2]
[332528570,1721288064339,-525.02239393,0.00025479,2]
[332528571,1721288064352,-611.76,0.00025479,2]
[332528572,1721288064365,-1173.23,0.00025479,2]
[332528573,1721288064377,-709.13,0.00025479,2]
[332528574,1721288064389,-753.22,0.00025479,2]
[332528575,1721288064402,-571.73,0.00025479,2]
[332528576,1721288064414,-500.0,0.00025479,2]
[332528577,1721288064426,-351.59386046,0.00025479,2]
[332528578,1721288064439,-500.0,0.00025479,2]
[332528579,1721288064451,-307.38133153,0.00025479,2]
[332528580,1721288064464,-679.34,0.00025479,2]
[332528581,1721288064480,-393.7,0.00025479,2]
[332528582,1721288064494,-500.0,0.00025479,2]
[332528583,1721288064508,-500.0,0.00025479,2]
[332528584,1721288064523,-771.42,0.00025479,2]
[332528585,1721288064537,-500.0,0.00025479,2]
[332528586,1721288064551,-500.0,0.00025479,2]
[332528587,1721288064564,-1055.96,0.00025479,2]
[332528588,1721288064578,-500.0,0.00025479,2]
[332528589,1721288064591,-500.0,0.00025479,2]
[332528590,1721288065762,-277.22772742,0.00025479,2]
[332528591,1721288065776,-756.04,0.00025479,2]
[332528592,1721288065786,-703.28,0.00025479,2]
[332528593,1721288065796,-750.7,0.00025479,2]
[332528594,1721288065806,-500.0,0.00025479,2]
[332528595,1721288065816,-500.0,0.00025479,2]
[332528596,1721288065826,-500.0,0.00025479,2]
[332528597,1721288065835,-1168.54,0.00025479,2]
[332528598,1721288065845,-500.0,0.00025479,2]
[332528599,1721288065856,-500.0,0.00025479,2]
[332528600,1721288065865,-500.0,0.00025479,2]
[332528601,1721288065876,-1538.77,0.00025479,2]
[332528602,1721288065886,-926.42,0.00025479,2]
[332528603,1721288065895,-1335.62,0.00025479,2]
[332528604,1721288065905,-1229.0,0.00025479,2]
[332528605,1721288065916,-500.0,0.00025479,2]
[332528606,1721288065926,-984.25,0.00025479,2]
[332528607,1721288065936,-1387.55,0.00025479,2]
[332528608,1721288065946,-500.0,0.00025479,2]
[332528609,1721288065956,-500.0,0.00025479,2]
[332528610,1721288065967,-925.35,0.00025479,2]
[332528611,1721288065979,-542.52,0.00025479,2]
[332528612,1721288065990,-500.0,0.00025479,2]
[332528613,1721288066000,-500.0,0.00025479,2]
[332528614,1721288066011,-500.0,0.00025479,2]
[332528615,1721288066022,-1699.26,0.00025479,2]
[332528616,1721288066034,-542.08,0.00025479,2]
[332528617,1721288066045,-560.08,0.00025479,2]
[332528618,1721288066054,-546.62739435,0.00025479,2]
[332528619,1721288066064,-500.0,0.00025479,2]
[332528620,1721288066073,-500.0,0.00025479,2]
[332528621,1721288066084,-500.0,0.00025479,2]
[332528622,1721288066094,-1355.83,0.00025479,2]
[332528623,1721288066104,-505.95,0.00025479,2]
[332528624,1721288066116,-500.0,0.00025479,2]
[332528625,1721288066127,-628.74,0.00025479,2]
[332528626,1721288066137,-500.0,0.00025479,2]
[332528627,1721288066148,-676.4,0.00025479,2]
[332528628,1721288066158,-538.06,0.00025479,2]
[332528629,1721288066169,-500.0,0.00025479,2]
[332528630,1721288066179,-1065.58,0.00025479,2]
[332528631,1721288066188,-629.63445859,0.00025479,2]
[332528632,1721288066198,-1408.6,0.00025479,7]
[332528633,1721288066208,-872.67,0.00025479,2]
[332528634,1721288066218,-1348.92,0.00025479,2]
[332528635,1721288066228,-838.7,0.00025479,2]
[332528636,1721288066239,-500.0,0.00025479,2]
[332528637,1721288066248,-503.03,0.00025479,2]
[332528638,1721288066259,-500.0,0.00025479,2]
[332528639,1721288066269,-500.0,0.00025479,2]
[332528640,1721288066279,-500.0,0.00025479,2]
[332528641,1721288066289,-802.6,0.00025479,2]
[332528642,1721288066298,-579.37,0.00025479,2]
[332528643,1721288066307,-780.83,0.00025479,2]
[332528644,1721288066317,-781.35,0.00025479,2]
[332528645,1721288066326,-724.1,0.00025479,2]
[332528646,1721288066336,-500.0,0.00025479,2]
[332528647,1721288066346,-568.82,0.00025479,2]
[332528648,1721288066355,-1287.42,0.00025479,2]
[332528649,1721288066365,-771.73,0.00025479,2]
[332528650,1721288066375,-1353.92,0.00025479,2]
[332528651,1721288066386,-1387.82,0.00025479,2]
[332528652,1721288066396,-500.0,0.00025479,2]
[332528653,1721288066405,-500.0,0.00025479,2]
[332528654,1721288066415,-553.81,0.00025479,2]
[332528655,1721288066426,-500.0,0.00025479,2]
[332528656,1721288066436,-500.0,0.00025479,2]
[332528657,1721288066446,-682.98,0.00025479,2]
[332528658,1721288066456,-911.72,0.00025479,2]
[332528659,1721288066466,-819.38,0.00025479,2]
[332528660,1721288066476,-972.31,0.00025479,2]
[332528661,1721288066489,-500.0,0.00025479,2]
[332528662,1721288066499,-1109.76,0.00025479,2]
[332528663,1721288066509,-500.0,0.00025479,2]
[332528664,1721288066519,-836.26,0.00025479,2]
[332528665,1721288066528,-544.15,0.00025479,2]
[332528666,1721288066538,-500.0,0.00025479,2]
[332528667,1721288066548,-744.75,0.00025479,2]
[332528668,1721288066558,-659.68,0.00025479,2]
[332528669,1721288066568,-1074.46,0.00025479,2]
[332528670,1721288066578,-918.1,0.00025479,2]
[332528671,1721288066588,-637.37,0.00025479,2]
[332528672,1721288066597,-500.0,0.00025479,2]
[332528673,1721288066606,-941.47,0.00025479,2]
[332528674,1721288066616,-808.27,0.00025479,2]
[332528675,1721288066626,-1715.0,0.00025479,2]
[332528676,1721288066635,-543.92,0.00025479,2]
[332528677,1721288066645,-500.0,0.00025479,2]
[332528678,1721288066655,-848.98,0.00025479,2]
[332528679,1721288066669,-500.0,0.00025479,2]
[332528680,1721288066678,-702.02,0.00025479,2]
[332528681,1721288066688,-833.62,0.00025479,2]
[332528682,1721288066698,-747.03,0.00025479,2]
[332528683,1721288066708,-694.12,0.00025479,2]
[332528684,1721288066717,-1393.96,0.00025479,2]
[332528685,1721288066726,-923.3,0.00025479,2]
[332528686,1721288066738,-864.51,0.00025479,2]
[332528687,1721288066748,-874.63,0.00025479,2]
[332528688,1721288066757,-572.13,0.00025479,2]
[332528689,1721288066767,-500.0,0.00025479,2]
[332528690,1721288066777,-768.44,0.00025479,2]
[332528691,1721288066786,-919.94,0.00025479,2]
[332528692,1721288066795,-500.0,0.00025479,2]
[332528693,1721288066805,-500.0,0.00025479,2]
[332528694,1721288066815,-500.0,0.00025479,2]
[332528695,1721288066824,-500.0,0.00025479,2]
[332528696,1721288066834,-567.01,0.00025479,2]
[332528697,1721288066843,-750.97,0.00025479,2]
[332528698,1721288066853,-664.81,0.00025479,2]
[332528699,1721288066863,-500.0,0.00025479,2]
[332528700,1721288066873,-1439.37,0.00025479,2]
[332528701,1721288066882,-820.24,0.00025479,2]
[332528702,1721288066892,-500.0,0.00025479,2]
[332528703,1721288066902,-659.88,0.00025479,2]
[332528704,1721288066911,-500.0,0.00025479,2]
[332528705,1721288066921,-675.36,0.00025479,2]
[332528706,1721288066931,-1239.37,0.00025479,2]
[332528707,1721288066941,-587.43,0.00025479,2]
[332528708,1721288066950,-500.0,0.00025479,2]
[332528709,1721288066960,-500.0,0.00025479,2]
[332528710,1721288066969,-1037.75,0.00025479,2]
[332528711,1721288066980,-1312.95,0.00025479,2]
[332528712,1721288066989,-500.0,0.00025479,2]
[332528713,1721288066999,-500.0,0.00025479,2]
[332528714,1721288067011,-1508.18,0.00025479,2]
[332528715,1721288067021,-759.36,0.00025479,2]
[332528716,1721288067032,-589.69,0.00025479,2]
[332528717,1721288067042,-589.59,0.00025479,2]
[332528718,1721288067051,-500.0,0.00025479,2]
[332528719,1721288067061,-500.0,0.00025479,2]
[332528720,1721288067071,-519.36,0.00025479,2]
[332528721,1721288067080,-465.48,0.00025479,2]
[332528722,1721288067091,-500.0,0.00025479,2]
[332528723,1721288067100,-1570.3,0.00025479,2]
[332528724,1721288067110,-607.86249039,0.00025479,2]
[332528725,1721288067120,-500.0,0.00025479,2]
[332528726,1721288067130,-684.5,0.00025479,2]
[332528727,1721288067139,-778.25,0.00025479,2]
[332528728,1721288067149,-1825.46,0.00025479,2]
[332528729,1721288067159,-647.56,0.00025479,2]
[332528730,1721288067169,-1501.12,0.00025479,2]
[332528731,1721288067178,-649.76,0.00025479,2]
[332528732,1721288067187,-698.16,0.00025479,2]
[332528733,1721288067197,-500.0,0.00025479,2]
[332528734,1721288067207,-500.0,0.00025479,2]
[332528735,1721288067217,-838.21,0.00025479,2]
[332528736,1721288067227,-832.49,0.00025479,2]
[332528737,1721288067238,-635.85,0.00025479,2]
[332528738,1721288067249,-507.12299089,0.00025479,2]
[332528739,1721288067259,-505.31356803,0.00025479,2]
[332528740,1721288067268,-1002.59,0.00025479,2]
[332528741,1721288067279,-500.0,0.00025479,2]
[332528742,1721288067289,-507.11566678,0.00025479,2]
[332528743,1721288067298,-1264.99,0.00025479,2]
[332528744,1721288067308,-558.12,0.00025479,2]
[332528745,1721288067318,-667.65,0.00025479,2]
[332528746,1721288067328,-828.72,0.00025479,2]
[332528747,1721288067338,-825.13,0.00025479,2]
[332528748,1721288067348,-935.3,0.00025479,2]
[332528749,1721288067357,-500.0,0.00025479,2]
[332528750,1721288067367,-500.0,0.00025479,2]
[332528751,1721288067377,-572.09,0.00025479,2]
[332528752,1721288067386,-801.73,0.00025479,2]
[332528753,1721288067396,-829.06,0.00025479,2]
[332528754,1721288067405,-506.54087547,0.00025479,2]
[332528755,1721288067415,-266.04293989,0.00025479,2]
[332528756,1721288067426,-533.21,0.00025479,2]
[332528757,1721288067436,-1500.37,0.00025479,2]
[332528758,1721288067445,-993.33,0.00025479,2]
[332528759,1721288067455,-500.0,0.00025479,2]
[332528760,1721288067465,-614.68,0.00025479,2]
[332528761,1721288067475,-839.63,0.00025479,2]
[332528762,1721288067486,-1099.16,0.00025479,2]
[332528763,1721288067496,-2190.92,0.00025479,2]
[332528764,1721288067505,-769.89,0.00025479,2]
[332528765,1721288067515,-1387.79,0.00025479,2]
[332528766,1721288067525,-860.39,0.00025479,2]
[332528767,1721288067534,-916.75,0.00025479,2]
[332528768,1721288067544,-510.86990473,0.00025479,2]
[332528769,1721288067553,-500.0,0.00025479,2]
[332528770,1721288067563,-621.09,0.00025479,2]
[332528771,1721288067573,-500.0,0.00025479,2]
[332528772,1721288067583,-2607.0,0.00025479,2]
[332528773,1721288067592,-584.20000181,0.00025479,2]
[332528774,1721288067602,-934.95,0.00025479,2]
[332528775,1721288067611,-634.32,0.00025479,2]
[332528776,1721288067621,-1185.83,0.00025479,2]
[332528777,1721288067631,-714.68,0.00025479,2]
[332528778,1721288067641,-509.7399298,0.00025479,2]
[332528779,1721288067650,-706.1,0.00025479,2]
[332528780,1721288067662,-992.23,0.00025479,2]
[332528781,1721288067672,-500.0,0.00025479,2]
[332528782,1721288067682,-719.06,0.00025479,2]
[332528783,1721288067692,-500.0,0.00025479,2]
[332528784,1721288067703,-506.61757279,0.00025479,2]
[332528785,1721288067712,-879.71,0.00025479,2]
[332528786,1721288067722,-962.74,0.00025479,2]
[332528787,1721288067733,-4194.17,0.00025479,2]
[332528788,1721288067744,-500.0,0.00025479,2]
[332528789,1721288067754,-503.59937268,0.00025479,2]
[332528790,1721288067764,-500.0,0.00025479,2]
[332528791,1721288067774,-500.0,0.00025479,2]
[332528792,1721288067784,-796.16,0.00025479,2]
[332528793,1721288067794,-845.59,0.00025479,2]
[332528794,1721288067803,-1343.67,0.00025479,2]
[332528795,1721288067813,-607.98,0.00025479,2]
[332528796,1721288067823,-509.57750497,0.00025479,2]
[332528797,1721288067832,-884.87,0.00025479,2]
[332528798,1721288067842,-500.0,0.00025479,2]
[332528799,1721288067852,-563.78,0.00025479,2]
[332528800,1721288067862,-664.21,0.00025479,2]
[332528801,1721288067872,-619.48,0.00025479,2]
[332528802,1721288067881,-1023.41,0.00025479,2]
[332528803,1721288067891,-504.37605921,0.00025479,2]
[332528804,1721288067900,-4286.57,0.00025479,2]
[332528805,1721288067910,-759.2,0.00025479,2]
[332528806,1721288067919,-500.0,0.00025479,2]
[332528807,1721288067929,-1303.0,0.00025479,2]
[332528808,1721288067939,-664.93,0.00025479,2]
[332528809,1721288067949,-799.99,0.00025479,2]
[332528810,1721288067960,-492.89650974,0.00025479,2]
[332528811,1721288067971,-779.15,0.00025479,2]
[332528812,1721288067982,-840.9,0.00025479,2]
[332528813,1721288067992,-705.02,0.00025479,2]
[332528814,1721288068002,-500.0,0.00025479,2]
[332528815,1721288068012,-699.13,0.00025479,2]
[332528816,1721288068022,-712.43,0.00025479,2]
[332528817,1721288068032,-615.07,0.00025479,2]
[332528818,1721288068041,-227.20936152,0.00025479,2]
[332528819,1721288068051,-640.55,0.00025479,2]
[332528820,1721288068061,-842.93,0.00025479,2]
[332528821,1721288068195,-1213.95,0.00025479,2]
[332528822,1721288068205,-504.19059135,0.00025479,2]
[332528823,1721288068215,-500.0,0.00025479,2]
[332528824,1721288068225,-515.65,0.00025479,2]
[332528825,1721288068235,-500.0,0.00025479,2]
[332528826,1721288068244,-964.94,0.00025479,2]
[332528827,1721288068253,-592.68,0.00025479,2]
[332528828,1721288068263,-6375.98,0.00025479,2]
[332528829,1721288068273,-1083.93,0.00025479,2]
[332528830,1721288068283,-1379.21,0.00025479,2]
[332528831,1721288068294,-1037.41,0.00025479,2]
[332528832,1721288068305,-500.0,0.00025479,2]
[332528833,1721288068314,-1777.51,0.00025479,2]
[332528834,1721288068325,-559.08,0.00025479,2]
[332528835,1721288068335,-1444.47,0.00025479,2]
[332528836,1721288068346,-1147.47,0.00025479,2]
[332528837,1721288068356,-815.97,0.00025479,2]
[332528838,1721288068367,-500.0,0.00025479,2]
[332528839,1721288068378,-1394.22,0.00025479,2]
[332528840,1721288068388,-1149.47,0.00025479,2]
[332528841,1721288068397,-588.95,0.00025479,2]
[332528842,1721288068408,-7884.99,0.00025479,2]
[332528843,1721288068419,-1142.52,0.00025479,2]
[332528844,1721288068429,-2350.96,0.00025479,2]
[332528845,1721288068440,-751.24,0.00025479,2]
[332528846,1721288068450,-500.0,0.00025479,2]
[332528847,1721288068459,-518.01,0.00025479,2]
[332528848,1721288068471,-1047.43,0.00025479,2]
[332528849,1721288068482,-9262.82,0.00025479,2]
[332528850,1721288068493,-576.17,0.00025479,2]
[332528851,1721288068505,-817.71,0.00025479,2]
[332528852,1721288068515,-500.0,0.00025479,2]
[332528853,1721288068525,-567.84,0.00025479,2]
[332528854,1721288068534,-943.1,0.00025479,2]
[332528855,1721288068544,-714.81,0.00025479,2]
[332528856,1721288068554,-559.22,0.00025479,2]
[332528857,1721288068563,-671.4,0.00025479,2]
[332528858,1721288068573,-1700.34,0.00025479,2]
[332528859,1721288068583,-595.86,0.00025479,2]
[332528860,1721288068593,-897.02,0.00025479,2]
[332528861,1721288068605,-812.96,0.00025479,2]
[332528862,1721288068616,-709.03,0.00025479,2]
[332528863,1721288068627,-763.5,0.00025479,2]
[332528864,1721288068637,-504.09463905,0.00025479,2]
[332528865,1721288068647,-500.0,0.00025479,2]
[332528866,1721288068658,-919.85,0.00025479,2]
[332528867,1721288068671,-915.85,0.00025479,2]
[332528868,1721288068681,-1583.56,0.00025479,2]
[332528869,1721288068690,-634.02,0.00025479,2]
[332528870,1721288068700,-1450.66,0.00025479,2]
[332528871,1721288068711,-708.78,0.00025479,2]
[332528872,1721288068723,-948.76,0.00025479,2]
[332528873,1721288068732,-500.0,0.00025479,2]
[332528874,1721288068744,-1051.57,0.00025479,2]
[332528875,1721288068753,-2003.88,0.00025479,2]
[332528876,1721288068766,-601.06,0.00025479,2]
[332528877,1721288068777,-796.81,0.00025479,2]
[332528878,1721288068787,-515.65,0.00025479,2]
[332528879,1721288068796,-1013.83,0.00025479,2]
[332528880,1721288068807,-500.0,0.00025479,2]
[332528881,1721288068817,-544.27,0.00025479,2]
[332528882,1721288068827,-503.35,0.00025479,2]
[332528883,1721288068839,-1299.19,0.00025479,2]
[332528884,1721288068851,-1547.31,0.00025479,2]
[332528885,1721288068860,-500.0,0.00025479,2]
[332528886,1721288068870,-612.66,0.00025479,2]
[332528887,1721288068879,-957.7,0.00025479,2]
[332528888,1721288068888,-999.04,0.00025479,2]
[332528889,1721288068899,-677.55,0.00025479,2]
[332528890,1721288068908,-549.83,0.00025479,2]
[332528891,1721288068920,-798.47,0.00025479,2]
[332528892,1721288068929,-695.01,0.00025479,2]
[332528893,1721288068939,-518.09,0.00025479,2]
[332528894,1721288068948,-813.28,0.00025479,2]
[332528895,1721288068958,-1656.81,0.00025479,2]
[332528896,1721288068967,-945.22,0.00025479,2]
[332528897,1721288068976,-947.17,0.00025479,2]
[332528898,1721288068987,-539.79,0.00025479,2]
[332528899,1721288068996,-706.37,0.00025479,2]
[332528900,1721288069005,-1135.75,0.00025479,2]
[332528901,1721288069015,-673.53,0.00025479,2]
[332528902,1721288069024,-3128.96,0.00025479,2]
[332528903,1721288069033,-557.31,0.00025479,2]
[332528904,1721288069043,-669.1,0.00025479,2]
[332528905,1721288069052,-3223.32,0.00025479,2]
[332528906,1721288069061,-842.49,0.00025479,2]
[332528907,1721288069071,-542.57,0.00025479,2]
[332528908,1721288069081,-836.84,0.00025479,2]
[332528909,1721288069091,-884.02,0.00025479,2]
[332528910,1721288069101,-1416.46,0.00025479,2]
[332528911,1721288069110,-525.77,0.00025479,2]
[332528912,1721288069120,-500.0,0.00025479,2]
[332528913,1721288069129,-808.77,0.00025479,2]
[332528914,1721288069138,-813.18,0.00025479,2]
[332528915,1721288069147,-2204.96,0.00025479,2]
[332528916,1721288069157,-888.04,0.00025479,2]
[332528917,1721288069167,-500.0,0.00025479,2]
[332528918,1721288069176,-617.34,0.00025479,2]
[332528919,1721288069186,-503.15,0.00025479,2]
[332528920,1721288069195,-500.0,0.00025479,2]
[332528921,1721288069205,-550.97,0.00025479,2]
[332528922,1721288069215,-773.79,0.00025479,2]
[332528923,1721288069224,-1258.11,0.00025479,2]
[332528924,1721288069234,-556.49,0.00025479,2]
[332528925,1721288069243,-1541.61,0.00025479,2]
[332528926,1721288069253,-500.0,0.00025479,2]
[332528927,1721288069262,-1497.76,0.00025479,2]
[332528928,1721288069272,-923.36,0.00025479,2]
[332528929,1721288069282,-500.0,0.00025479,2]
[332528930,1721288069292,-698.16,0.00025479,2]
[332528931,1721288069305,-1777.63,0.00025479,2]
[332528932,1721288069315,-1751.66,0.00025479,2]
[332528933,1721288069326,-504.68675217,0.00025479,2]
[332528934,1721288069337,-748.62,0.00025479,2]
[332528935,1721288069347,-1440.65,0.00025479,2]
[332528936,1721288069358,-500.0,0.00025479,2]
[332528937,1721288069368,-500.0,0.00025479,2]
[332528938,1721288069382,-600.34,0.00025479,2]
[332528939,1721288069391,-1459.37,0.00025479,2]
[332528940,1721288069400,-834.65,0.00025479,2]
[332528941,1721288069410,-574.9,0.00025479,2]
[332528942,1721288069419,-967.34,0.00025479,2]
[332528943,1721288069430,-945.46,0.00025479,2]
[332528944,1721288069440,-6789.46,0.00025479,2]
[332528945,1721288069451,-702.74,0.00025479,2]
[332528946,1721288069462,-1351.16,0.00025479,2]
[332528947,1721288069474,-1649.03,0.00025479,2]
[332528948,1721288069484,-846.83,0.00025479,2]
[332528949,1721288069493,-3838.48,0.00025479,2]
[332528950,1721288069504,-727.83,0.00025479,2]
[332528951,1721288069515,-1099.8,0.00025479,2]
[332528952,1721288069524,-592.88,0.00025479,2]
[332528953,1721288069533,-1314.69,0.00025479,2]
[332528954,1721288069542,-660.25,0.00025479,2]
[332528955,1721288069551,-1225.2,0.00025479,2]
[332528956,1721288069561,-690.8,0.00025479,2]
[332528957,1721288069573,-758.27,0.00025479,2]
[332528958,1721288069584,-815.9,0.00025479,2]
[332528959,1721288069594,-1445.6,0.00025479,2]
[332528960,1721288069603,-1211.24,0.00025479,2]
[332528961,1721288069613,-500.0,0.00025479,2]
[332528962,1721288069623,-764.9,0.00025479,2]
[332528963,1721288069633,-1017.79,0.00025479,2]
[332528964,1721288069643,-279.09762781,0.00025479,2]
[332528965,1721288069654,-819.77,0.00025479,2]
[332528966,1721288069667,-843.65,0.00025479,2]
[332528967,1721288069676,-508.09,0.00025479,2]
[332528968,1721288069687,-4510.49,0.00025479,2]
[332528969,1721288069696,-1121.8,0.00025479,2]
[332528970,1721288069705,-615.98,0.00025479,2]
[332528971,1721288069715,-548.62,0.00025479,2]
[332528972,1721288069726,-500.0,0.00025479,2]
[332528973,1721288069738,-732.51,0.00025479,2]
[332528974,1721288069747,-727.51,0.00025479,2]
[332528975,1721288069759,-500.0,0.00025479,2]
[332528976,1721288069769,-699.69,0.00025479,2]
[332528977,1721288069779,-159.60060744,0.00025479,2]